[Event "*** MasterClass Titled Tuesday Blitz"]
[Site "Chess.com"]
[Date "2017.07.04"]
[Round "7"]
[White "Elshan1985"]
[Black "GMAkobianSTL"]
[Result "1-0"]
[WhiteElo "2645"]
[BlackElo "2549"]
[TimeControl "180+2"]
[EndTime "14:37:34 PDT"]
[Termination "Elshan1985 won on time"]

1. e4 {[%clk 0:03:01.9]} 1... d6 {[%clk 0:02:58.3]} 2. d4 {[%clk 0:03:01.9]}
2... Nf6 {[%clk 0:02:56.8]} 3. Nc3 {[%clk 0:03:00.9]} 3... c6 {[%clk 0:02:57.8]}
4. Nge2 {[%clk 0:02:52.8]} 4... Nbd7 {[%clk 0:02:54.1]} 5. g3 {[%clk 0:02:53.3]}
5... e5 {[%clk 0:02:54.4]} 6. Bg2 {[%clk 0:02:55.2]} 6... b5 {[%clk 0:02:54.9]}
7. O-O {[%clk 0:02:55.2]} 7... Be7 {[%clk 0:02:54.3]} 8. Re1 {[%clk 0:02:56.1]}
8... O-O {[%clk 0:02:54.2]} 9. a3 {[%clk 0:02:57.2]} 9... a5 {[%clk 0:02:53.7]}
10. Be3 {[%clk 0:02:52.7]} 10... Bb7 {[%clk 0:02:51.7]} 11. b4 {[%clk
0:02:43.2]} 11... Qc7 {[%clk 0:02:48.5]} 12. h3 {[%clk 0:02:40.4]} 12... Nb6
{[%clk 0:02:47.7]} 13. f4 {[%clk 0:02:15.3]} 13... Nc4 {[%clk 0:02:47.1]} 14.
Bf2 {[%clk 0:02:16.2]} 14... axb4 {[%clk 0:02:44.3]} 15. axb4 {[%clk 0:02:16.8]}
15... Rxa1 {[%clk 0:02:44]} 16. Qxa1 {[%clk 0:02:18.7]} 16... Ra8 {[%clk
0:02:42.5]} 17. Qc1 {[%clk 0:02:19.6]} 17... h6 {[%clk 0:02:37.4]} 18. g4 {[%clk
0:02:18.7]} 18... Nd7 {[%clk 0:02:26.2]} 19. Kh1 {[%clk 0:02:10.9]} 19... exf4
{[%clk 0:02:05.4]} 20. Nxf4 {[%clk 0:02:08.7]} 20... Ra3 {[%clk 0:01:55.9]} 21.
Nd1 {[%clk 0:02:09.7]} 21... Bg5 {[%clk 0:01:55.1]} 22. h4 {[%clk 0:02:10.3]}
22... Bf6 {[%clk 0:01:53.8]} 23. Nh5 {[%clk 0:01:51.9]} 23... Qd8 {[%clk
0:01:43.5]} 24. g5 {[%clk 0:01:50.7]} 24... hxg5 {[%clk 0:01:43.6]} 25. Nxf6+
{[%clk 0:01:51.8]} 25... Qxf6 {[%clk 0:01:38.7]} 26. hxg5 {[%clk 0:01:46]} 26...
Qg6 {[%clk 0:01:36.7]} 27. Qf4 {[%clk 0:01:44.8]} 27... Nf8 {[%clk 0:01:36.8]}
28. Qf5 {[%clk 0:01:15.2]} 28... Qh5+ {[%clk 0:01:33.1]} 29. Kg1 {[%clk
0:01:16]} 29... Nd2 {[%clk 0:01:12.7]} 30. Ne3 {[%clk 0:01:09.4]} 30... Ne6
{[%clk 0:01:07.6]} 31. g6 {[%clk 0:00:50.7]} 31... Qxg6 {[%clk 0:01:07.3]} 32.
Qxg6 {[%clk 0:00:51.5]} 32... fxg6 {[%clk 0:01:08]} 33. Nf1 {[%clk 0:00:32]}
33... Nf3+ {[%clk 0:01:00.2]} 34. Bxf3 {[%clk 0:00:33]} 34... Rxf3 {[%clk
0:01:00.6]} 35. Bg3 {[%clk 0:00:33.9]} 35... Nxd4 {[%clk 0:00:58.4]} 36. Bxd6
{[%clk 0:00:34.9]} 36... Nxc2 {[%clk 0:00:50.2]} 37. Re2 {[%clk 0:00:36.2]}
37... Nd4 {[%clk 0:00:50.5]} 38. Rf2 {[%clk 0:00:36.6]} 38... Bc8 {[%clk
0:00:28.8]} 39. Bc5 {[%clk 0:00:33.8]} 39... Rxf2 {[%clk 0:00:28.4]} 40. Kxf2
{[%clk 0:00:35.7]} 40... Ne6 {[%clk 0:00:28.5]} 41. Bd6 {[%clk 0:00:35.5]} 41...
Kf7 {[%clk 0:00:26.9]} 42. Nd2 {[%clk 0:00:36.7]} 42... Ke8 {[%clk 0:00:27]} 43.
Nb3 {[%clk 0:00:34.8]} 43... g5 {[%clk 0:00:25.8]} 44. Nc5 {[%clk 0:00:33.7]}
44... Nd4 {[%clk 0:00:21.9]} 45. Be5 {[%clk 0:00:32.7]} 45... Nc2 {[%clk
0:00:22.4]} 46. Nd3 {[%clk 0:00:32.9]} 46... Kf7 {[%clk 0:00:21.9]} 47. Bc3
{[%clk 0:00:28.2]} 47... Ke6 {[%clk 0:00:10.9]} 48. Bxg7 {[%clk 0:00:27.6]}
48... Na3 {[%clk 0:00:06.8]} 49. Bd4 {[%clk 0:00:21.4]} 49... Nc4 {[%clk
0:00:07.2]} 50. Nc5+ {[%clk 0:00:22.3]} 50... Kf7 {[%clk 0:00:08]} 51. Nd3
{[%clk 0:00:22.5]} 51... Ke6 {[%clk 0:00:07]} 52. Nc5+ {[%clk 0:00:23.6]} 52...
Kd6 {[%clk 0:00:07.6]} 53. Nd3 {[%clk 0:00:25]} 53... Be6 {[%clk 0:00:06.6]} 54.
Bf6 {[%clk 0:00:25.7]} 54... g4 {[%clk 0:00:07.2]} 55. Bd4 {[%clk 0:00:24]}
55... Bg8 {[%clk 0:00:05.7]} 56. Kg3 {[%clk 0:00:23.7]} 56... Be6 {[%clk
0:00:05.6]} 57. Kf4 {[%clk 0:00:24.6]} 57... Bc8 {[%clk 0:00:05.2]} 58. Bc5+
{[%clk 0:00:24]} 58... Kc7 {[%clk 0:00:05]} 59. Nf2 {[%clk 0:00:24]} 1-0

[Event "*** MasterClass Titled Tuesday Blitz"]
[Site "Chess.com"]
[Date "2017.07.04"]
[Round "7"]
[White "peteseeger"]
[Black "PelinGorki"]
[Result "1-0"]
[WhiteElo "2155"]
[BlackElo "2305"]
[TimeControl "180+2"]
[EndTime "14:37:41 PDT"]
[Termination "peteseeger won by checkmate"]

1. e4 {[%clk 0:03:01.9]} 1... d6 {[%clk 0:00:44.4]} 2. d4 {[%clk 0:03:01.9]}
2... Nf6 {[%clk 0:00:44.8]} 3. Nc3 {[%clk 0:03:02.6]} 3... c6 {[%clk 0:00:45.9]}
4. f4 {[%clk 0:03:02.4]} 4... Qa5 {[%clk 0:00:45.9]} 5. Bd3 {[%clk 0:03:02.7]}
5... e5 {[%clk 0:00:47.3]} 6. Nf3 {[%clk 0:03:02.6]} 6... exd4 {[%clk
0:00:48.4]} 7. Nxd4 {[%clk 0:03:02.3]} 7... Qb6 {[%clk 0:00:50.3]} 8. Nb3 {[%clk
0:02:55.1]} 8... a5 {[%clk 0:00:50.8]} 9. a4 {[%clk 0:02:52.7]} 9... d5 {[%clk
0:00:47]} 10. e5 {[%clk 0:02:49.1]} 10... Nfd7 {[%clk 0:00:45.8]} 11. Qe2 {[%clk
0:02:45.7]} 11... Nc5 {[%clk 0:00:42.1]} 12. Be3 {[%clk 0:02:29.1]} 12... Nxd3+
{[%clk 0:00:39]} 13. Qxd3 {[%clk 0:02:29.6]} 13... Qc7 {[%clk 0:00:37.7]} 14.
O-O {[%clk 0:02:23.1]} 14... Na6 {[%clk 0:00:34.8]} 15. f5 {[%clk 0:02:16.4]}
15... Nb4 {[%clk 0:00:20.4]} 16. Qd2 {[%clk 0:02:12.8]} 16... b6 {[%clk
0:00:21.5]} 17. Rae1 {[%clk 0:02:08.7]} 17... Ba6 {[%clk 0:00:22.4]} 18. Rf2
{[%clk 0:02:08.5]} 18... O-O-O {[%clk 0:00:23.5]} 19. Nd4 {[%clk 0:01:30.2]}
19... Bc5 {[%clk 0:00:21.6]} 20. Kh1 {[%clk 0:01:30]} 20... Rde8 {[%clk
0:00:20]} 21. e6 {[%clk 0:01:24.7]} 21... fxe6 {[%clk 0:00:19.6]} 22. Nxe6
{[%clk 0:01:25.5]} 22... Qd6 {[%clk 0:00:18.3]} 23. Bf4 {[%clk 0:01:11.6]} 23...
Qe7 {[%clk 0:00:16.5]} 24. Ne2 {[%clk 0:01:05.7]} 24... Bd6 {[%clk 0:00:15.6]}
25. N2d4 {[%clk 0:00:52.1]} 25... Bxf4 {[%clk 0:00:11.6]} 26. Rxf4 {[%clk
0:00:52.9]} 26... Qf6 {[%clk 0:00:12.8]} 27. Qf2 {[%clk 0:00:42.9]} 27... Kb7
{[%clk 0:00:13.4]} 28. h3 {[%clk 0:00:39.5]} 28... g5 {[%clk 0:00:12.3]} 29. Rf3
{[%clk 0:00:39.1]} 29... h5 {[%clk 0:00:12.3]} 30. Rb3 {[%clk 0:00:39.3]} 30...
Bc4 {[%clk 0:00:10.4]} 31. Rbe3 {[%clk 0:00:37]} 31... g4 {[%clk 0:00:11.1]} 32.
h4 {[%clk 0:00:36.3]} 32... Rhg8 {[%clk 0:00:10.3]} 33. b3 {[%clk 0:00:35.8]}
33... Ba6 {[%clk 0:00:10]} 34. g3 {[%clk 0:00:35.1]} 34... c5 {[%clk 0:00:09.6]}
35. Nb5 {[%clk 0:00:34.5]} 35... Bxb5 {[%clk 0:00:11]} 36. axb5 {[%clk
0:00:35.6]} 36... d4 {[%clk 0:00:12.9]} 37. Re5 {[%clk 0:00:35.6]} 37... Ka7
{[%clk 0:00:14.3]} 38. Qf4 {[%clk 0:00:31.2]} 38... Rgf8 {[%clk 0:00:12]} 39.
R5e2 {[%clk 0:00:25.9]} 39... d3 {[%clk 0:00:12.8]} 40. Qc7+ {[%clk 0:00:23.7]}
40... Ka8 {[%clk 0:00:12.3]} 41. cxd3 {[%clk 0:00:23.5]} 41... Qxf5 {[%clk
0:00:11.6]} 42. Qxb6 {[%clk 0:00:23]} 42... Qf3+ {[%clk 0:00:12.2]} 43. Kh2
{[%clk 0:00:23.5]} 43... Rxe6 {[%clk 0:00:12]} 44. Qxe6 {[%clk 0:00:18.8]} 44...
Nxd3 {[%clk 0:00:13.1]} 45. Qa6+ {[%clk 0:00:18.8]} 45... Kb8 {[%clk 0:00:13.5]}
46. b6 {[%clk 0:00:19.9]} 46... Qc6 {[%clk 0:00:08.9]} 47. Qa7+ {[%clk
0:00:20.5]} 47... Kc8 {[%clk 0:00:09.9]} 48. Re8+ {[%clk 0:00:21.3]} 48... Qxe8
{[%clk 0:00:08.8]} 49. Rxe8+ {[%clk 0:00:21.7]} 49... Rxe8 {[%clk 0:00:10.7]}
50. Qc7# {[%clk 0:00:22.4]} 1-0

[Event "*** MasterClass Titled Tuesday Blitz"]
[Site "Chess.com"]
[Date "2017.07.04"]
[Round "7"]
[White "GMKrikor"]
[Black "Blitzstream"]
[Result "1/2-1/2"]
[WhiteElo "2462"]
[BlackElo "2447"]
[TimeControl "180+2"]
[EndTime "14:38:35 PDT"]
[Termination "Game drawn by agreement"]

1. e4 {[%clk 0:03:01.9]} 1... e5 {[%clk 0:03:00.3]} 2. Nf3 {[%clk 0:03:02.8]}
2... Nf6 {[%clk 0:03:01.8]} 3. Nxe5 {[%clk 0:02:58.2]} 3... d5 {[%clk
0:03:02.9]} 4. exd5 {[%clk 0:02:40.8]} 4... Qxd5 {[%clk 0:03:04.8]} 5. d4 {[%clk
0:02:29.7]} 5... Nc6 {[%clk 0:03:04.3]} 6. Nc3 {[%clk 0:02:26.7]} 6... Bb4
{[%clk 0:03:02]} 7. Bd2 {[%clk 0:01:41.1]} 7... Qxd4 {[%clk 0:02:40.7]} 8. Nxc6
{[%clk 0:01:39.3]} 8... bxc6 {[%clk 0:02:42.6]} 9. Qe2+ {[%clk 0:01:40.2]} 9...
Be6 {[%clk 0:02:41]} 10. O-O-O {[%clk 0:01:35.1]} 10... O-O {[%clk 0:02:33.8]}
11. a3 {[%clk 0:01:31.4]} 11... Bd6 {[%clk 0:02:05.5]} 12. Be3 {[%clk
0:01:29.5]} 12... Qe5 {[%clk 0:02:04]} 13. Bd4 {[%clk 0:01:02.7]} 13... Qg5+
{[%clk 0:02:02.6]} 14. Qd2 {[%clk 0:00:54.7]} 14... Bf4 {[%clk 0:01:40.3]} 15.
Be3 {[%clk 0:00:55.2]} 15... Bxe3 {[%clk 0:01:41.5]} 16. Qxe3 {[%clk 0:00:56.6]}
16... Qxe3+ {[%clk 0:01:42.3]} 17. fxe3 {[%clk 0:00:57.8]} 17... Ng4 {[%clk
0:01:43.9]} 18. Re1 {[%clk 0:00:57.3]} 18... Rfe8 {[%clk 0:01:39.2]} 19. h3
{[%clk 0:00:58]} 19... Ne5 {[%clk 0:01:35.3]} 20. Be2 {[%clk 0:00:59.2]} 20...
Bd5 {[%clk 0:01:33.3]} 21. Rhg1 {[%clk 0:00:56.9]} 21... Re7 {[%clk 0:01:29.4]}
22. Rd1 {[%clk 0:00:55.4]} 22... Bc4 {[%clk 0:01:28.9]} 23. Rd4 {[%clk
0:00:46.2]} 23... Bxe2 {[%clk 0:01:25.2]} 24. Nxe2 {[%clk 0:00:47]} 24... Ng6
{[%clk 0:01:21]} 25. Rgd1 {[%clk 0:00:28.4]} 25... h5 {[%clk 0:01:15.2]} 26.
Rd8+ {[%clk 0:00:28.7]} 26... Rxd8 {[%clk 0:01:15.7]} 27. Rxd8+ {[%clk
0:00:30.2]} 27... Kh7 {[%clk 0:01:17.6]} 28. Ra8 {[%clk 0:00:31]} 28... Rxe3
{[%clk 0:01:17]} 29. Kd2 {[%clk 0:00:32.2]} 29... Re5 {[%clk 0:01:11.1]} 30.
Rxa7 {[%clk 0:00:33.3]} 30... Rg5 {[%clk 0:01:12.1]} 31. a4 {[%clk 0:00:32.6]}
31... Rxg2 {[%clk 0:01:12.4]} 32. Ke3 {[%clk 0:00:31.1]} 32... Rh2 {[%clk
0:01:08]} 33. Rxc7 {[%clk 0:00:30.6]} 33... Rxh3+ {[%clk 0:01:08.8]} 34. Kf2
{[%clk 0:00:30.2]} 34... Rh2+ {[%clk 0:00:57.6]} 35. Ke3 {[%clk 0:00:30.2]}
35... Ne5 {[%clk 0:00:52.6]} 36. b3 {[%clk 0:00:26.1]} 36... Ng4+ {[%clk
0:00:47.4]} 37. Kd3 {[%clk 0:00:27.2]} 37... Ne5+ {[%clk 0:00:48]} 38. Kd2
{[%clk 0:00:27.7]} 38... Nf3+ {[%clk 0:00:36.6]} 39. Ke3 {[%clk 0:00:27.8]}
39... Ne1 {[%clk 0:00:37.8]} 40. Rxc6 {[%clk 0:00:24.3]} 40... g5 {[%clk
0:00:36.4]} 41. a5 {[%clk 0:00:24]} 41... Ng2+ {[%clk 0:00:33.4]} 42. Kd3 {[%clk
0:00:22.3]} 42... Ne1+ {[%clk 0:00:33.8]} 43. Ke3 {[%clk 0:00:19.4]} 43... Ng2+
{[%clk 0:00:34.5]} 44. Kd3 {[%clk 0:00:16.4]} 44... Ne1+ {[%clk 0:00:35.6]} 45.
Kd2 {[%clk 0:00:17.6]} 45... Nf3+ {[%clk 0:00:35.5]} 46. Ke3 {[%clk 0:00:18.9]}
46... Rxe2+ {[%clk 0:00:34.3]} 47. Kxf3 {[%clk 0:00:17.6]} 47... Re7 {[%clk
0:00:35]} 48. a6 {[%clk 0:00:18.5]} 48... f5 {[%clk 0:00:33.6]} 49. b4 {[%clk
0:00:19.5]} 49... g4+ {[%clk 0:00:33.8]} 50. Kg3 {[%clk 0:00:18.4]} 50... Re3+
{[%clk 0:00:34]} 51. Kh4 {[%clk 0:00:17.7]} 51... g3 {[%clk 0:00:27.1]} 52. a7
{[%clk 0:00:16.7]} 52... Ra3 {[%clk 0:00:21.8]} 53. Kh3 {[%clk 0:00:13.3]} 53...
Rxa7 {[%clk 0:00:18.2]} 54. Kxg3 {[%clk 0:00:14.3]} 54... Rg7+ {[%clk 0:00:18]}
55. Kf4 {[%clk 0:00:11.2]} 55... Rg4+ {[%clk 0:00:18.3]} 56. Kxf5 {[%clk
0:00:12]} 56... Rxb4 {[%clk 0:00:19.4]} 57. c4 {[%clk 0:00:11.4]} 57... Kg7
{[%clk 0:00:20.5]} 58. Rc7+ {[%clk 0:00:09.7]} 58... Kh6 {[%clk 0:00:16.2]} 59.
c5 {[%clk 0:00:10.5]} 59... h4 {[%clk 0:00:17.5]} 60. Rc6+ {[%clk 0:00:11.2]}
60... Kg7 {[%clk 0:00:17.5]} 61. Rc8 {[%clk 0:00:13.1]} 61... h3 {[%clk
0:00:17]} 62. Rc7+ {[%clk 0:00:14.1]} 62... Kh6 {[%clk 0:00:17.5]} 63. Rc6+
{[%clk 0:00:15.1]} 63... Kg7 {[%clk 0:00:18.5]} 64. Rg6+ {[%clk 0:00:15.9]}
64... Kh7 {[%clk 0:00:18]} 65. Rg3 {[%clk 0:00:15.1]} 65... Rh4 {[%clk
0:00:17.5]} 66. Rg1 {[%clk 0:00:14.1]} 66... h2 {[%clk 0:00:18]} 67. Rh1 {[%clk
0:00:15.2]} 67... Rh5+ {[%clk 0:00:15.7]} 68. Kg4 {[%clk 0:00:12.2]} 68... Rxc5
{[%clk 0:00:16]} 1/2-1/2

[Event "*** MasterClass Titled Tuesday Blitz"]
[Site "Chess.com"]
[Date "2017.07.04"]
[Round "7"]
[White "JeffReinberg"]
[Black "Alexander_Donchenko"]
[Result "1/2-1/2"]
[WhiteElo "2519"]
[BlackElo "2574"]
[TimeControl "180+2"]
[EndTime "14:38:38 PDT"]
[Termination "Game drawn by stalemate"]

1. e4 {[%clk 0:03:01.9]} 1... c5 {[%clk 0:03:00.7]} 2. Nc3 {[%clk 0:03:02.8]}
2... a6 {[%clk 0:03:00.4]} 3. d3 {[%clk 0:03:03.2]} 3... b5 {[%clk 0:03:00.6]}
4. g3 {[%clk 0:03:04.5]} 4... Bb7 {[%clk 0:03:00.8]} 5. Bg2 {[%clk 0:03:04.7]}
5... e6 {[%clk 0:03:00.5]} 6. f4 {[%clk 0:03:05.6]} 6... b4 {[%clk 0:03:02.3]}
7. Nce2 {[%clk 0:03:06]} 7... d5 {[%clk 0:02:59.1]} 8. Nf3 {[%clk 0:03:06.6]}
8... dxe4 {[%clk 0:03:01.7]} 9. Ng5 {[%clk 0:03:07.5]} 9... Nf6 {[%clk 0:03:01]}
10. Nxe4 {[%clk 0:03:08]} 10... Nxe4 {[%clk 0:02:55.1]} 11. Bxe4 {[%clk
0:03:09.9]} 11... Bxe4 {[%clk 0:02:38.7]} 12. dxe4 {[%clk 0:03:11.8]} 12...
Qxd1+ {[%clk 0:01:18.4]} 13. Kxd1 {[%clk 0:03:13.7]} 13... Nc6 {[%clk
0:01:19.5]} 14. c3 {[%clk 0:03:13.1]} 14... O-O-O+ {[%clk 0:01:21.2]} 15. Kc2
{[%clk 0:03:13]} 15... f5 {[%clk 0:01:21.1]} 16. e5 {[%clk 0:03:07.6]} 16... c4
{[%clk 0:01:20.3]} 17. Be3 {[%clk 0:03:08.5]} 17... Rd3 {[%clk 0:01:22.4]} 18.
Bf2 {[%clk 0:03:00.5]} 18... Be7 {[%clk 0:01:22.5]} 19. Rad1 {[%clk 0:02:59]}
19... Rhd8 {[%clk 0:01:23.5]} 20. Nc1 {[%clk 0:02:59]} 20... R3d5 {[%clk
0:01:18]} 21. Rxd5 {[%clk 0:02:55.6]} 21... Rxd5 {[%clk 0:01:18.7]} 22. Rd1
{[%clk 0:02:55.5]} 22... Ra5 {[%clk 0:01:19.5]} 23. cxb4 {[%clk 0:02:52.5]}
23... Nxb4+ {[%clk 0:01:20]} 24. Kb1 {[%clk 0:02:53.3]} 24... Nd5 {[%clk
0:01:16.3]} 25. Ne2 {[%clk 0:02:30.7]} 25... Kb7 {[%clk 0:01:13.1]} 26. Rc1
{[%clk 0:02:29.5]} 26... Ra4 {[%clk 0:00:59.6]} 27. Nc3 {[%clk 0:01:59.6]} 27...
Nxc3+ {[%clk 0:00:58.5]} 28. Rxc3 {[%clk 0:01:59.6]} 28... g5 {[%clk 0:00:54.1]}
29. a3 {[%clk 0:01:45.7]} 29... g4 {[%clk 0:00:54.3]} 30. Rc2 {[%clk 0:01:43.6]}
30... Kc6 {[%clk 0:00:54.8]} 31. Be1 {[%clk 0:01:41]} 31... c3 {[%clk
0:00:51.5]} 32. Bxc3 {[%clk 0:01:34.6]} 32... Rc4 {[%clk 0:00:52.4]} 33. Bb4
{[%clk 0:01:29]} 33... Rxc2 {[%clk 0:00:52.5]} 34. Kxc2 {[%clk 0:01:29.5]} 34...
Bd8 {[%clk 0:00:53.3]} 35. Kd3 {[%clk 0:01:23.3]} 35... Bb6 {[%clk 0:00:53]} 36.
Kc4 {[%clk 0:01:14.4]} 36... Bg1 {[%clk 0:00:53.5]} 37. Be1 {[%clk 0:01:15.2]}
37... h5 {[%clk 0:00:54]} 38. b4 {[%clk 0:01:05.6]} 38... Bxh2 {[%clk
0:00:54.9]} 39. a4 {[%clk 0:00:58.1]} 39... Bg1 {[%clk 0:00:39.3]} 40. b5+
{[%clk 0:00:56.8]} 40... axb5+ {[%clk 0:00:41.2]} 41. axb5+ {[%clk 0:00:58.2]}
41... Kb6 {[%clk 0:00:42.8]} 42. Kb4 {[%clk 0:00:51.5]} 42... Be3 {[%clk
0:00:43.6]} 43. Kc4 {[%clk 0:00:50.3]} 43... h4 {[%clk 0:00:42.3]} 44. gxh4
{[%clk 0:00:50.4]} 44... Bxf4 {[%clk 0:00:44]} 45. h5 {[%clk 0:00:50.4]} 45...
Bxe5 {[%clk 0:00:45.3]} 46. h6 {[%clk 0:00:50.3]} 46... g3 {[%clk 0:00:45.3]}
47. h7 {[%clk 0:00:37.3]} 47... f4 {[%clk 0:00:27.4]} 48. Bc3 {[%clk 0:00:34.4]}
48... Bxc3 {[%clk 0:00:15.6]} 49. Kxc3 {[%clk 0:00:36.3]} 49... g2 {[%clk
0:00:17.5]} 50. h8=Q {[%clk 0:00:36.6]} 50... g1=Q {[%clk 0:00:19.4]} 51. Qb8+
{[%clk 0:00:18.9]} 51... Ka5 {[%clk 0:00:20.6]} 52. Qxf4 {[%clk 0:00:09.8]}
52... Qc5+ {[%clk 0:00:21.1]} 53. Kd3 {[%clk 0:00:09.5]} 53... Qxb5+ {[%clk
0:00:21.8]} 54. Ke4 {[%clk 0:00:08.2]} 54... Qd5+ {[%clk 0:00:22.7]} 55. Ke3
{[%clk 0:00:09]} 55... Kb5 {[%clk 0:00:24]} 56. Qd4 {[%clk 0:00:09.9]} 56...
Qb3+ {[%clk 0:00:23.2]} 57. Ke4 {[%clk 0:00:10.9]} 57... Kc6 {[%clk 0:00:24.2]}
58. Ke5 {[%clk 0:00:11.5]} 58... Qd5+ {[%clk 0:00:15.5]} 59. Qxd5+ {[%clk
0:00:11.3]} 59... exd5 {[%clk 0:00:17.4]} 60. Kd4 {[%clk 0:00:13]} 60... Kd6
{[%clk 0:00:19.3]} 61. Kd3 {[%clk 0:00:14.2]} 61... Ke5 {[%clk 0:00:21.2]} 62.
Ke3 {[%clk 0:00:15.3]} 62... d4+ {[%clk 0:00:23.1]} 63. Kd3 {[%clk 0:00:16.3]}
63... Kd5 {[%clk 0:00:25]} 64. Kd2 {[%clk 0:00:17.2]} 64... Kc4 {[%clk
0:00:26.9]} 65. Kc2 {[%clk 0:00:18.3]} 65... d3+ {[%clk 0:00:28.8]} 66. Kd2
{[%clk 0:00:19.1]} 66... Kd4 {[%clk 0:00:30.7]} 67. Kd1 {[%clk 0:00:19.8]} 67...
Ke3 {[%clk 0:00:32.6]} 68. Ke1 {[%clk 0:00:20.8]} 68... Ke4 {[%clk 0:00:34.5]}
69. Kd2 {[%clk 0:00:20.4]} 69... Kd4 {[%clk 0:00:36]} 70. Kd1 {[%clk 0:00:21]}
70... Kd5 {[%clk 0:00:37.7]} 71. Kd2 {[%clk 0:00:20.4]} 71... Kc4 {[%clk
0:00:39.6]} 72. Kd1 {[%clk 0:00:21.2]} 72... Kc3 {[%clk 0:00:41.5]} 73. Kc1
{[%clk 0:00:22]} 73... d2+ {[%clk 0:00:43.4]} 74. Kd1 {[%clk 0:00:22.9]} 74...
Kd3 {[%clk 0:00:45.3]} 1/2-1/2